Cogmind - Beta 15 @@@ ROGUE MODE // 2025.07.15 @ 10:00:25 Player: beans Result: Destroyed by Y-45 Defender with Heavy Assault Rifle Performance ------------- Evolutions (1) 500 Regions Visited (3) 600 Robots Destroyed (25) 125 Value Destroyed (603) 603 Prototype IDs (0) 0 Alien Tech Used (0) 0 Bonus (0) 0 TOTAL SCORE: 1828 Bonus ------- None Cogmind --------- Core Integrity 0/400 Matter 194/300 Energy 81/100 System Corruption 0% Temperature Cool (0) Movement Core (50) Location -9/Materials Parts ------- > --- POWER (1) -------- (None) > --- PROPULSION (2) --- (None) > --- UTILITY (4) ------ Visual Processing Unit Salvage Targeting Computer > --- WEAPON (2) ------- Small Laser > --- INVENTORY (5) ---- (None) Peak State ------------ > --- POWER ------------ Improved Ion Engine > --- PROPULSION ------- Light Treads > --- UTILITY ---------- Visual Processing Unit Salvage Targeting Computer Shield Generator > --- WEAPON ----------- Heavy Assault Rifle > --- INVENTORY -------- Small Laser [Rating: 11] Favorites ----------- Power Improved Ion Engine Engine Improved Ion Engine Propulsion Light Treads Treads Light Treads Utility Visual Processing Unit Device Shield Generator Processor Visual Processing Unit Weapon Small Laser Energy Gun Small Laser Ballistic Gun Heavy Assault Rifle Launcher Grenade Launcher Build | -11 -10 -10 -9 ------- Run | Yrd Mat Min Mat Slots Evolved 2 | . . . 2 Power . | . . . . Propulsion . | . . . . Utility 2 | . . . 2 Weapon . | . . . . Parts Attached 12 | 4 1 . 7 Power 2 | 1 . . 1 Engine 2 | 1 . . 1 Core . | . . . . Reactor . | . . . . Propulsion 2 | 2 . . . Treads 2 | 2 . . . Leg . | . . . . Wheel . | . . . . Hover . | . . . . Flight . | . . . . Utility 3 | . . . 3 Device 1 | . . . 1 Storage . | . . . . Processor 2 | . . . 2 Hackware . | . . . . Protection . | . . . . Artifact . | . . . . Weapon 5 | 1 1 . 3 Energy Gun 2 | 1 1 . . Energy Cannon . | . . . . Ballistic Gun 2 | . . . 2 Ballistic Cannon . | . . . . Launcher 1 | . . . 1 Special Weapon . | . . . . Impact Weapon . | . . . . Slashing Weapon . | . . . . Piercing Weapon . | . . . . Special Melee Weapon . | . . . . Unidentified Prototypes . | . . . . Parts Lost 8 | . 2 . 6 Power 2 | . 1 . 1 Propulsion 2 | . 1 . 1 Utility 1 | . . . 1 Weapon 3 | . . . 3 Highest Loss Streak 4 | . 1 . 4 To Critical Strikes . | . . . . Average Backups . | . . . . Power . | . . . . Propulsion . | . . . . Utility . | . . . . Weapon . | . . . . Tool/Special . | . . . . Unused Backups . | . . . . Power . | . . . . Propulsion . | . . . . Utility . | . . . . Weapon . | . . . . Tool/Special . | . . . . Average Slot Usage (%) 46 | . 47 42 49 Engine 3 | . 6 . 5 Treads 13 | . 23 14 6 Device 2 | . . . 5 Processor 5 | . . . 13 Energy Gun 17 | . 17 28 8 Ballistic Gun 3 | . . . 9 Peak Build Rating 11 | 4 4 3 11 Average Rating 4 | 2 3 3 7 On Entrance 2 | . 4 3 3 Naked Turns . | . . . . Heaviest Build 13 | 6 6 2 13 Greatest Support 40 | 40 40 20 20 Greatest Overweight (x) 4 | . . . 4 Average Overweight (x) . | . . . . Largest Inventory Capacity 5 | 5 5 5 5 Average Capacity 5 | 5 5 5 5 Most Carried 4 | 4 1 . 2 Average Carried . | . . . . Final Capacity 5 | 5 5 5 5 Final Carried . | . . . . Class Distribution -------------------- 91% | Mutant 8% | Scavenger-Mutant Dominant Class ---------------- Mutant | -10/Materials Mutant | -10/Mines Mutant | -9/Materials Resources | -11 -10 -10 -9 ----------- Run | Yrd Mat Min Mat Matter Collected 409 | 199 51 . 159 Remotely . | . . . . Salvage Created 873 | . 310 38 525 Parts 47 | . 17 4 26 Haulers Intercepted . | . . . . Recyclers Shooed 1 | . 1 . . Parts Field Recycled . | . . . . Retrieved Matter . | . . . . Parts Self-Destructed . | . . . . Prevented . | . . . . Kills | -11 -10 -10 -9 ------- Run | Yrd Mat Min Mat Combat Hostiles Destroyed 18 | . 5 3 10 Guns 15 | . 5 3 7 AOE 3 | . . . 3 Classes Destroyed 7 | . 3 1 3 Worker 2 | . . . 2 Tunneler 1 | . 1 . . Recycler 2 | . 1 . 1 Watcher 2 | . . . 2 Swarmer 6 | . . 3 3 Grunt 9 | . 5 . 4 Sentry 3 | . . . 3 Best Kill Streak 7 | . 4 3 7 Combat Bots Only 6 | . 2 3 6 Max Kills in Single Turn 2 | . 1 2 2 Gunslinging 1 | . . 1 . Exploded 1 | . . . 1 Melee . | . . . . Uniques/NPCs Destroyed . | . . . . Combat | -11 -10 -10 -9 -------- Run | Yrd Mat Min Mat Hostile Shots Fired 150 | . 38 14 98 Missed 42 | . 6 2 34 Hits 108 | . 32 12 64 Projectile 108 | . 32 12 64 Critical Strikes 4 | . 1 1 2 Damage Taken 1375 | . 398 91 886 Core 570 | . 124 36 410 Absorbed by Shields 63 | . . . 63 Core Remaining (%) 68 | 100 . 36 . Volleys Fired 86 | 2 31 4 49 Largest 2 | 1 2 2 2 Hottest 80 | 40 80 80 80 Shots Fired 111 | 2 35 8 66 Gun 103 | 2 35 8 58 Cannon . | . . . . Launcher 8 | . . . 8 Special . | . . . . Kinetic 45 | . . . 45 Thermal 58 | 2 35 8 13 Explosive 8 | . . . 8 Electromagnetic . | . . . . Robot Hit Streak 11 | . 11 2 10 Robot Miss Streak 4 | 2 3 3 4 Penetration Max . | . . . . Secondary Targets 2 | . . 2 . Max Gunslinging Chain 1 | . . 1 . Shots Hit Robots 76 | . 27 4 45 Core Hits 42 | . 14 3 25 Critical Kills . | . . . . Critical Parts Destroyed . | . . . . Critical Strikes . | . . . . Melee Attacks . | . . . . Impact . | . . . . Slashing . | . . . . Piercing . | . . . . Sneak Attacks . | . . . . Combat Hostiles . | . . . . Follow-up Attacks . | . . . . Damage Inflicted 1180 | 11 306 52 811 Guns 916 | 11 306 52 547 Cannons . | . . . . Explosions 264 | . . . 264 Melee . | . . . . Ramming . | . . . . Kinetic 447 | . . . 447 Thermal 469 | 11 306 52 100 Explosive 264 | . . . 264 Electromagnetic . | . . . . Impact . | . . . . Slashing . | . . . . Piercing . | . . . . Highest Corruption . | . . . . Average Corruption . | . . . . Corruption Purged . | . . . . Corruption Blocked . | . . . . Overload Shots . | . . . . Overflow Damage 3 | . . . 3 Projectiles . | . . . . Explosions 3 | . . . 3 Melee . | . . . . Knockbacks . | . . . . Impact . | . . . . Kinetic . | . . . . Secondary . | . . . . Self-Inflicted Damage 133 | . . . 133 Shots 5 | . . . 5 Rammed . | . . . . Targets Rammed . | . . . . Kicked . | . . . . Crushed . | . . . . Highest Temperature 38 | . 38 12 12 Average Temperature 10 | . 11 6 4 Received Heat Transfer 472 | . 234 . 238 Siege Activations . | . . . . Martial Activations . | . . . . Shielding Activations . | . . . . Robots Disrupted . | . . . . Combat Hostiles . | . . . . Robots Corrupted . | . . . . Combat Hostiles . | . . . . Parts Fried . | . . . . Impact Corruptions . | . . . . Robots Melted . | . . . . Combat Hostiles . | . . . . Parts Melted 2 | . 1 . 1 Heat Transferred 1075 | 25 700 125 225 Parts Sabotaged . | . . . . Parts Stolen . | . . . . Parts Stripped . | . . . . Power Chain Reactions . | . . . . Alert | -11 -10 -10 -9 ------- Run | Yrd Mat Min Mat Maximum Alert Level 1 | . . . 1 Low Security (%) 99 | 100 100 100 98 Level 1 . | . . . 1 Level 2 . | . . . . Level 3 . | . . . . Level 4 . | . . . . Level 5 . | . . . . High Security . | . . . . Max Security . | . . . . Peak Influence 202 | . 55 70 202 Initial 24 | . . 11 24 Average 18 | . 22 2 32 Influence Increases 573 | . 130 70 373 Destroy 0b10 Robot/C 360 | . 100 60 200 Destroy 0b10 Robot/NC 35 | . 10 . 25 Destroy Leader 94 | . 20 10 64 Disable Machine 15 | . . . 15 Destroy Structure 24 | . . . 24 Partial Spotted 15 | . . . 15 Lose Combat Pursuer 30 | . . . 30 Influence Decreases 381 | . 100 38 243 Entered New Map 57 | . . 19 38 Time Decay 254 | . 90 19 145 Lost Part 70 | . 10 . 60 Squads Dispatched 2 | . 1 . 1 Investigation . | . . . . Extermination . | . . . . Reinforcement 2 | . 1 . 1 Assault . | . . . . Garrison . | . . . . Intercept . | . . . . Searches Triggered . | . . . . Construction Impeded . | . . . . Haulers Reinforced . | . . . . Active Scanning Responses . | . . . . Cargo Convoy Interrupts . | . . . . Stealth | -11 -10 -10 -9 --------- Run | Yrd Mat Min Mat Distress Signals 2 | . 1 . 1 Communications Jammed . | . . . . Distress Signals . | . . . . Times Spotted 28 | . 8 3 17 Peak Tracking Total 6 | . 4 3 6 Tactical Retreats 1 | . . . 1 Traps | -11 -10 -10 -9 ------- Run | Yrd Mat Min Mat Traps Triggered . | . . . . Indirectly . | . . . . Trap Hack Attempts . | . . . . Triggered . | . . . . Disarmed . | . . . . Reprogrammed . | . . . . Reused . | . . . . Traps Extracted . | . . . . Installed . | . . . . Triggered . | . . . . Machines | -11 -10 -10 -9 ---------- Run | Yrd Mat Min Mat Machines Disabled 1 | . . . 1 Max in Single Turn 1 | . . . 1 Machines Repaired . | . . . . Machines Dismantled . | . . . . Machines Sabotaged . | . . . . Overloaded Fab Kills . | . . . . Hacking | -11 -10 -10 -9 --------- Run | Yrd Mat Min Mat Machines Accessed 1 | . 1 . . Terminals 1 | . 1 . . Fabricators . | . . . . Repair Stations . | . . . . Recycling Units . | . . . . Scanalyzers . | . . . . Garrison Access . | . . . . Total Hacks 2 | . 2 . . Successful 2 | . 2 . . Failed . | . . . . Catastrophic . | . . . . Database Lockouts . | . . . . Manual . | . . . . Terminals 2 | . 2 . . Fabricators . | . . . . Repair Stations . | . . . . Recycling Units . | . . . . Scanalyzers . | . . . . Garrison Access . | . . . . Terminal Hacks 2 | . 2 . . Record 2 | . 2 . . Fabricator Hacks . | . . . . Repair Station Hacks . | . . . . Recycling Unit Hacks . | . . . . Scanalyzer . | . . . . Garrison Access Hacks . | . . . . Unauthorized Hacks . | . . . . Terminals . | . . . . Fabricators . | . . . . Repair Stations . | . . . . Recycling Units . | . . . . Scanalyzers . | . . . . Garrison Access . | . . . . Data Cores Recovered . | . . . . Used . | . . . . Hacking Detections 1 | . 1 . . Full Trace Events . | . . . . Feedback Events . | . . . . Feedback Blocked . | . . . . Robot Schematics Acquired . | . . . . Robots Built . | . . . . Authchips . | . . . . Time . | . . . . Total Robot Build Rating . | . . . . Part Schematics Acquired . | . . . . Parts Built . | . . . . Authchips . | . . . . Time . | . . . . Total Part Build Rating . | . . . . Parts Repaired . | . . . . Time . | . . . . Parts Recycled . | . . . . Recycled Matter . | . . . . Retrieved Matter . | . . . . Retrieved Components . | . . . . Parts Scanalyzed . | . . . . Part Schematics Acquired . | . . . . Parts Damaged . | . . . . Bothacking | -11 -10 -10 -9 ------------ Run | Yrd Mat Min Mat Used RIF Installer . | . . . . Robots Hacked . | . . . . Non-combat . | . . . . Combat . | . . . . Robot Hacks Applied . | . . . . Relay Couplers Released . | . . . . Fabnet Peak Effective % . | . . . . Robots Rewired . | . . . . Allies Hacked . | . . . . Hacks Repelled . | . . . . Allies | -11 -10 -10 -9 -------- Run | Yrd Mat Min Mat Total Allies . | . . . . Largest Group . | . . . . Highest-Rated Group . | . . . . Highest-Rated Ally . | . . . . Total Orders . | . . . . Ally Attacks . | . . . . Total Damage . | . . . . Kills . | . . . . Allies Corrupted . | . . . . Allies Melted . | . . . . Intel | -11 -10 -10 -9 ------- Run | Yrd Mat Min Mat Active Infowar (turns) 355 | . . . 355 Optics 355 | . . . 355 Robot Analysis Total . | . . . . Derelict Logs Recovered 1 | . . 1 . Drone Launches . | . . . . Drone Recoveries . | . . . . Exploration | -11 -10 -10 -9 ------------- Run | Yrd Mat Min Mat Turns Passed 1166 | 56 252 401 457 Spaces Moved 571 | 41 103 244 183 Core 61 | 19 . . 42 Treads 510 | 22 103 244 141 Legs . | . . . . Wheels . | . . . . Hover . | . . . . Flight . | . . . . Fastest Speed 50 | 50 160 160 50 Average Speed 161 | 109 160 160 175 Slowest Speed 250 | 160 160 160 250 Overloaded Moves . | . . . . Propulsion Burnouts . | . . . . Robots Hopped . | . . . . Potential Cave-ins . | . . . . Cave-ins Triggered . | . . . . Exploration Rate (%) 26 | 2 18 66 21 Regions Visited 3 Branch Regions 1 Pre-discovered Areas 1 | . . 1 . Known Exits Taken . | . . . . Unknown Exits Taken 3 | 1 1 1 . Scrap Searched 2 | . . 2 . Spaces Dug . | . . . . Terrain Destroyed 26 | . . . 26 Melee . | . . . . Projectile . | . . . . AOE 26 | . . . 26 Terrain Rammed . | . . . . Walls Destroyed . | . . . . Machines Disabled . | . . . . Actions | -11 -10 -10 -9 --------- Run | Yrd Mat Min Mat Total 706 | 50 155 247 254 Wait 26 | . 20 . 6 Move 568 | 40 102 243 183 Hop . | . . . . Pick Up 12 | 4 1 . 7 Fast Attach . | . . . . Attach 12 | 4 1 . 7 Detach . | . . . . Swap 1 | . . . 1 Drop 1 | . . . 1 Fire 86 | 2 31 4 49 Melee . | . . . . Ram . | . . . . Kick . | . . . . Crush . | . . . . Escape Stasis . | . . . . Rewire . | . . . . Trap . | . . . . Miscellaneous . | . . . . Route ------- -11/Scrapyard -10/Materials -10/Mines -9/Materials History --------- Turn | Location | Event 3 | -11/Scrapyard | Discovered new exit (range 15) 57 | -11/Scrapyard | Entered Materials 199 | -10/Materials | Discovered new exit (range 6) 300 | -10/Materials | Build established: Mutant 309 | -10/Materials | Entered Mines 401 | -10/Mines | Learned location of Recycling (-7) 655 | -10/Mines | Found a hidden stash of uninstalled traps 682 | -10/Mines | Discovered new exit (range 9) 687 | -10/Mines | Core integrity fell below 50% 710 | -10/Mines | Entered Materials 710 | -9/Materials | Evolved 2 slots: Utility x2 1153 | -9/Materials | Core integrity fell below 50% 1162 | -9/Materials | Core integrity fell below 20% 1167 | -9/Materials | Destroyed by Y-45 Defender with Heavy Assault Rifle Last Messages --------------- Critical hit (Burn: +37). S-10 Pest destroyed. Imp. Ion Engine destroyed. Hvy. Assault Rifle destroyed. S-10 Pest destroyed. Hvy. Assault Rifle destroyed. Acquired Grenade Launcher. G-47 Trooper destroyed. R-06 Scavenger destroyed. G-34 Mercenary destroyed. U-05 Engineer lays Concrete. Y-45 Defender destroyed. U-05 Engineer lays Concrete. The unstable cave ceiling collapses. U-05 Engineer builds a Wall. K-01 Serf collects debris. Grenade Launcher destroyed. Destroyed Grenade Launcher. U-05 Engineer lays Concrete. U-05 Engineer builds a Wall. Map ----- +----------------------------------------------------+ | ?????????????????????????????????????????????????? | | ?????????????????????????????????????????????????? | | ?????????????????????????????????????????????????? | | ????????????????????????????? ???????????????? | | ????????????????????????????? ???????????????? | | ????????????????????????????? ???????????????? | | ????????????????????????????? ???????????????? | | ????????????????????????????? ???????????????? | | ?????????????????????????????# #???????????????? | | ?????????????????????????????# #???????????????? | | ?????????????????????????????# +???????????????? | | ?????????????????????????????# #???????????????? | | ???????????????#?????##??????# #???????????????? | | ???????????????? ? ?? ?????# #???????????????? | | ????????????????T ?? ###### ????????????????? | | ????????????????? """ # ????????????????? | | ?????????????????? """ + ? #???????????????? | | ??????????????????? """ u ? ????????????????? | | ???????????????????? #!##### #????????????????? | | ????????????????????? !u # # #????????????#+### | | ?????????????????????? %k= ############## | | ?????????????????????## ! ## %%[ # | | ?????????????????????# %= ## % # | | ?????????????????????# Y +% "" # | | ?????????????????????# ## """" % %+= | | ?????????????????????# ]@ ## """""! # | | ?????????????????????# ]]] ### """"" ####+ | | ?????????????????????# ]] ## #?# """ #???? | | ?????????????????????##### ### #?# #???? | | ?????????????????????????###?# #?#+#########???? | | ?????????????????????????????# #?? ????????????? | | ?????????????????????????????# #???????????????? | | ?????????????????????????????# #???????????????? | | ?????????????????????????????# #???????????????? | | ????????????????????????????? #???????????????? | | ????????????????????????????? #???????????????? | | ???????????????????????????? #???????????????? | | ????????????????????????????## #???????????????? | | ?????????????????????????????+ #???????????????? | | ?????????????????????????????# #???????????????? | | ?????????????????????????????# ????????????????? | | ?????????????????????????????? ????????????????? | | ?????????????????????????????? ????????????????? | | ?????????????????????????????????????????????????? | | ?????????????????????????????????????????????????? | | ?????????????????????????????????????????????????? | | ?????????????????????????????????????????????????? | | ?????????????????????????????????????????????????? | | ?????????????????????????????????????????????????? | | ?????????????????????????????????????????????????? | +----------------------------------------------------+ Best States ------------- Heat Dissipation 28 Energy Generation 12 Energy Capacity 265 Matter Stores 300 Matter Capacity 300 Sight Range 18 Terrain Scan Density 10 Evasion (%) 50 Recoil Reduction 2 Salvage Targeting 1 Item Schematics ----------------- None Robot Schematics ------------------ None Fabricated ------------ Nothing Repaired ---------- Nothing Alien Tech Used ----------------- None Achievements -------------- None Challenges ------------ None Game ------ Seed ActuatorBottomlessBlade Manual? 0 Play Time 00:09:01 Cumulative 50.2 hours Start 2025.07.15 @ 09:52:45 End 2025.07.15 @ 10:00:25 Sessions 1 Manual Loads 0 Difficulty Rogue Special Mode None Game No. 231 Rogue 231 Adventurer 0 Explorer 0 Win Type - Total 0 Types 0/0/0/0/0/0/0/0/0/0 Lore% 34 Gallery% 27 Achievement% 23 Wizard Run 0 Options --------- Layout 2 ASCII 0 Keyboard 0 Movement Mouse Keybinds 0 Fullscreen 1 Font 24/Smallcaps Map View 50x44 Zoom Use 0% Tactical HUD 0 Map Filters NONE Filters NONE Steam 1 RUN: b2463611-e81a-4519-8a27-836ed966577a